lending/lending_fUSD_20241212
["ID","MTS","AMOUNT","RATE_DAILY","PERIOD"]
[345114997,1734025851511,-200.52430466,0.00021095,2]
[345114998,1734025851523,-500.0,0.00021095,2]
[345114999,1734025851534,-500.0,0.00021095,2]
[345115000,1734025851545,-738.73,0.00021095,2]
[345115001,1734025851557,-500.26105984,0.0002113,2]
[345115002,1734025851567,-500.0,0.0002113,2]
[345115003,1734025851579,-500.0,0.0002113,2]
[345115004,1734025851590,-621.41796654,0.0002113,2]
[345115005,1734025851603,-500.0,0.0002113,2]
[345115006,1734025851615,-584.74,0.0002113,2]
[345115007,1734025851628,-526.60132679,0.0002113,2]
[345115008,1734025851648,-500.0,0.0002113,2]
[345115009,1734025851660,-568.8,0.0002113,2]
[345115010,1734025851672,-500.0,0.0002113,2]
[345115011,1734025851685,-500.0,0.0002113,2]
[345115012,1734025851697,-637.96658584,0.0002113,2]
[345115013,1734025851710,-500.0,0.0002113,2]
[345115014,1734025851722,-500.0,0.0002113,2]
[345115015,1734025851734,-500.0,0.0002113,2]
[345115016,1734025851746,-500.0,0.0002113,2]
[345115017,1734025851758,-633.74467135,0.0002113,2]
[345115018,1734025851770,-500.0,0.0002113,2]
[345115019,1734025851780,-676.91,0.0002113,2]
[345115020,1734025851792,-500.0,0.0002113,2]
[345115021,1734025851803,-500.0,0.0002113,2]
[345115022,1734025851813,-597.36922308,0.0002113,2]
[345115023,1734025851824,-500.0,0.0002113,2]
[345115024,1734025851834,-3768.52734426,0.0002113,2]
[345115025,1734025851844,-521.56034057,0.0002113,2]
[345115026,1734025851854,-534.48,0.0002113,2]
[345115027,1734025851864,-500.0,0.0002113,2]
[345115028,1734025851874,-500.0,0.0002113,2]
[345115029,1734025852028,-617.90425786,0.0002113,2]
[345115030,1734025852039,-507.18484031,0.0002113,2]
[345115031,1734025852048,-500.0,0.0002113,2]
[345115032,1734025852062,-500.0,0.0002113,2]
[345115033,1734025852072,-394.31107929,0.0002113,2]
[345115034,1734025852081,-556.14,0.0002113,2]
[345115035,1734025852091,-500.0,0.0002113,2]
[345115036,1734025852102,-303.92024624,0.0002113,2]
[345115037,1734025852112,-500.0,0.0002113,2]
[345115038,1734025852121,-500.0,0.0002113,2]
[345115039,1734025852130,-557.63267015,0.0002113,2]
[345115040,1734025852147,-500.0,0.0002113,2]
[345115041,1734025852157,-500.0,0.0002113,2]
[345115042,1734025852166,-256.48640249,0.0002113,2]
[345115043,1734025852180,-500.0,0.0002113,2]
[345115044,1734025852189,-500.0,0.0002113,2]
[345115045,1734025852198,-500.0,0.0002113,2]
[345115046,1734025852207,-500.0,0.0002113,2]
[345115047,1734025852216,-500.0,0.0002113,2]
[345115048,1734025852225,-500.0,0.0002113,2]
[345115049,1734025852234,-500.0,0.0002113,2]
[345115050,1734025852245,-686.17439872,0.0002113,2]
[345115051,1734025852255,-500.0,0.00021192,2]
[345115052,1734025852264,-669.01,0.00021192,2]
[345115053,1734025852274,-500.0,0.00021269,2]
[345115054,1734025852283,-500.0,0.00021269,2]
[345115055,1734025852293,-500.0,0.00021269,2]
[345115056,1734025852303,-500.0,0.00021269,2]
[345115057,1734025852312,-524.97,0.00021269,2]
[345115058,1734025852321,-1256.84,0.00021269,2]
[345115059,1734025852331,-2104.89,0.00021269,2]
[345115060,1734025852340,-1588.23,0.00021269,2]
[345115061,1734025852350,-500.0,0.00021269,2]
[345115062,1734025852359,-500.0,0.00021269,2]
[345115063,1734025852368,-16694.39889689,0.00021282,2]
[345115064,1734025852378,-472.52,0.00021287,2]
[345115065,1734025852390,-500.0,0.00021318,2]
[345115066,1734025852400,-500.0,0.00021318,2]
[345115067,1734025852409,-500.0,0.00021318,2]
[345115068,1734025852419,-500.0,0.00021318,2]
[345115069,1734025852428,-558.05913959,0.00021318,2]
[345115070,1734025852437,-500.0,0.00021318,2]
[345115071,1734025852447,-500.0,0.00021318,2]
[345115072,1734025852456,-500.0,0.00021318,2]
[345115073,1734025852465,-500.0,0.00021318,2]
[345115074,1734025852475,-380.11036459,0.00021318,2]
[345115075,1734025852485,-500.0,0.00021318,2]
[345115076,1734025852494,-500.0,0.00021318,2]
[345115077,1734025852504,-500.0,0.00021318,2]
[345115078,1734025852514,-500.0,0.00021318,2]
[345115079,1734025852523,-502.2814004,0.00021318,2]
[345115080,1734025852533,-589.99127344,0.00021318,2]
[345115081,1734025852542,-500.0,0.00021318,2]
[345115082,1734025852552,-500.0,0.00021318,2]
[345115083,1734025852568,-521.88,0.00021318,2]
[345115084,1734025852578,-920.61,0.00021318,2]
[345115085,1734025852589,-499.13377966,0.00021318,2]
[345115086,1734025852837,-0.86622034,0.00021318,2]
[345115087,1734025852847,-80.29330594,0.00021318,2]
[345115089,1734026825144,-276.93,0.00010137,2]
[345115090,1734026825167,-153.39,0.00013699,2]
[345115091,1734026825189,-25.17873555,0.00014842,2]
[345115092,1734026837139,-148.17126445,0.00014842,2]
[345115093,1734026837160,-126.24299429,0.00016813,2]
[345115094,1734026842099,-150.68700571,0.00016813,2]
[345115095,1734026842121,-749.69888067,0.0001682,2]
[345115096,1734026845088,-128.89111933,0.0001682,2]
[345115097,1734026845109,-250.0,0.000182,2]
[345115098,1734026845132,-133.72358537,0.00018418,2]
[345115099,1734026853095,-841.12291411,0.00018245,2]
[345115101,1734026949163,-450.0,0.00013,2]
[345115102,1734026949202,-500.0,0.00015,2]
[345115103,1734026949222,-550.0,0.00017,2]
[345115104,1734026949243,-1011.29708589,0.00018245,2]
[345115105,1734026949266,-569.04898775,0.00018311,2]
[345115106,1734026949286,-620.42,0.00018332,2]
[345115107,1734026949306,-250.0,0.00018332,2]
[345115108,1734026949325,-2621.00759636,0.00018336,2]
[345115109,1734026952129,-675.57240364,0.00018336,2]
[345115110,1734026952149,-800.0,0.00018411,2]
[345115111,1734026952169,-866.27641463,0.00018418,2]
[345115112,1734026952189,-150.0,0.000185,2]
[345115113,1734026952208,-542.67,0.00018583,30]
[345115114,1734026952228,-200.0,0.00018611,2]
[345115115,1734026952247,-989.51,0.00018675,2]
[345115116,1734026952273,-1018.16,0.00018701,2]
[345115117,1734026952292,-1002.7503,0.00018714,2]
[345115118,1734026952312,-992.88,0.00018732,2]
[345115119,1734026952332,-1000.01,0.00018766,2]
[345115120,1734026952352,-993.0,0.00018807,2]
[345115121,1734026952371,-1840.02,0.00018814,2]
[345115122,1734026952391,-1000.73,0.00018853,2]
[345115123,1734026952411,-1009.26,0.00018905,2]
[345115124,1734026952431,-1500.0,0.00018946,2]
[345115125,1734026952451,-998.81,0.00018966,2]
[345115126,1734026952471,-600.0,0.00019,2]
[345115127,1734026952491,-250.0,0.00019022,2]
[345115128,1734026952516,-1004.42,0.00019035,2]
[345115129,1734026952535,-878.59,0.00019084,2]
[345115130,1734026952556,-982.09,0.00019117,2]
[345115131,1734026952576,-1002.44,0.0001921,2]
[345115132,1734026952596,-989.56,0.00019317,2]
[345115133,1734026952615,-11554.4643023,0.000194,2]
[345115134,1734026953132,-25612.5356977,0.000194,2]
[345115135,1734026953154,-987.32,0.00019441,2]
[345115136,1734026953176,-984.89,0.00019585,2]
[345115137,1734026953211,-1019.68,0.00019744,2]
[345115138,1734026953234,-500.0,0.00019813,2]
[345115139,1734026953262,-155.29031999,0.000199,2]
[345115140,1734026953283,-1011.84,0.00019929,2]
[345115141,1734026953304,-3000.0,0.0002,2]
[345115142,1734026953326,-150.0,0.0002,2]
[345115143,1734026953348,-2392.161,0.0002,2]
[345115144,1734026953370,-173.571,0.0002,2]
[345115145,1734026953391,-44990.53534932,0.0002,2]
[345115146,1734026961141,-16605.45015131,0.0002,2]
[345115151,1734027032422,-15994.24723296,0.000198,2]
[345115152,1734027032643,-328.995,0.000198,2]
[345115159,1734027038150,-568.73823149,0.000198,2]
[345115160,1734027038160,-7008.01953555,0.000198,2]
[345115161,1734027038169,-200.0,0.00019843,2]
[345115162,1734027038178,-2094.68026445,0.0002,2]
[345115163,1734027038343,-767.25,0.00019746,2]
[345115164,1734027038352,-8153.15089308,0.0002,2]
[345115165,1734027038418,-30.49047319,0.0002,2]
[345115241,1734027040139,-7825.46015853,0.0002,2]
[345115242,1734027040150,-3930.85386161,0.0002,2]
[345115243,1734027040328,-256.95440002,0.0002,2]
[345115249,1734027043648,-764.81649706,0.0002,2]
[345115250,1734027043756,-786.10657793,0.0002,2]
[345115251,1734027043797,-19367.32169191,0.0002,2]
[345115252,1734027043844,-45580.404136,0.0002,2]
[345115255,1734027046260,-508.11749775,0.0002,2]
[345115256,1734027046273,-874.65804784,0.0002,2]
[345115257,1734027046284,-3876.5,0.0002,2]
[345115258,1734027046295,-800.0,0.0002,2]
[345115259,1734027046305,-1007.65,0.0002,2]
[345115260,1734027046314,-983.67,0.0002,2]
[345115261,1734027046325,-922.72357694,0.0002,2]
[345115279,1734027932144,-1939.01773732,0.0001,2]
[345115280,1734027937091,-326.55933431,0.0001,2]
[345115291,1734028025133,-150.0,9.999e-05,2]
[345115292,1734028025157,-864.30122298,0.0001,2]
[345115295,1734028038104,-305.05182596,0.0001,2]
[345115296,1734028043106,-1021.63247047,0.0001,2]
[345115297,1734028045094,-1045.85129976,0.0001,2]
[345115298,1734028049115,-4710.92128004,0.0001,2]
[345115299,1734028054119,-671.51329273,0.0001,2]
[345115317,1734028150179,-300.0,9.999e-05,2]
[345115318,1734028150202,-19341.98026913,0.0001,2]
[345115321,1734028151088,-23008.63698,0.0001,2]
[345115322,1734028151116,-167225.71799573,0.0001,2]
[345115324,1734028152092,-333.29007838,0.0001,2]
[345115328,1734028153101,-32536.74420956,0.0001,2]
[345115329,1734028160095,-15646.38432085,0.0001,2]
[345115330,1734028168091,-261.2342194,0.0001,2]
[345115331,1734028170124,-980.0,0.0001,2]
[345115335,1734028173194,-52917.45139089,0.0001,2]
[345115336,1734028173223,-236033.17371296,0.0001,2]
[345115344,1734028232391,-150.0,9.999e-05,2]
[345115345,1734028232400,-164.63056235,0.0001,2]
[345115346,1734028232412,-31031.12639284,0.0001,2]
[345115347,1734028232422,-987.90541646,0.0001,2]
[345115348,1734028232432,-322.35119471,0.0001,2]
[345115349,1734028232442,-155.01,0.00010137,2]
[345115350,1734028232452,-1165.0,0.00010238,2]
[345115351,1734028232461,-1163.0,0.00010238,2]
[345115352,1734028232471,-1163.0,0.00010238,2]
[345115353,1734028232483,-1163.0,0.00010238,2]
[345115354,1734028232493,-164.2912097,0.000109,2]
[345115355,1734028232503,-150.0,0.00010999,2]
[345115356,1734028232513,-164.29120966,0.00011634,2]
[345115357,1734028232523,-164.29120966,0.00013368,2]
[345115358,1734028232532,-153.39,0.00013699,2]
[345115359,1734028232542,-2345.47,0.00013899,2]
[345115360,1734028232551,-1092.09,0.00013899,2]
[345115361,1734028232561,-8238.37148829,0.00015,10]
[345115362,1734028232576,-593.999997,0.00015,10]
[345115363,1734028232588,-1900.0,0.00015,10]
[345115364,1734028232599,-4279.62851471,0.00015,10]
[345115365,1734028232609,-164.29120966,0.00015102,2]
[345115366,1734028232619,-5594.05798646,0.000154,2]
[345115367,1734028232633,-6872.73027085,0.000157,2]
[345115368,1734028232645,-1448.4844662,0.000157,2]
[345115369,1734028232672,-36759.89248285,0.000157,2]
[345115370,1734028232683,-13446.87970151,0.000157,2]
[345115371,1734028232702,-1957.37347,0.000157,2]
[345115372,1734028233167,-31113.81082185,0.000157,2]
[345115373,1734028233180,-931.00001,0.000157,2]
[345115374,1734028233191,-792.5651784,0.000157,2]
[345115377,1734028238256,-99.82705635,0.000157,2]
[345115378,1734028238266,-426.46,0.00016613,2]
[345115379,1734028238276,-153.0,0.00016704,2]
[345115380,1734028238286,-153.0,0.00016704,2]
[345115381,1734028238296,-153.0,0.00016705,2]
[345115382,1734028238305,-153.0,0.00016705,2]
[345115383,1734028238315,-153.0,0.00016705,2]
[345115384,1734028238324,-136.07720197,0.00016705,2]
[345115385,1734028238360,-16.92279803,0.00016705,2]
[345115386,1734028238370,-153.0,0.00016705,2]
[345115387,1734028238380,-153.0,0.00016705,2]
[345115388,1734028238394,-164.29120966,0.00016835,2]
[345115389,1734028238405,-2056.0,0.00016922,2]
[345115390,1734028238414,-157.22,0.00016961,2]
[345115391,1734028238424,-200.0,0.0001704,2]
[345115392,1734028238435,-3859.01253919,0.00017298,2]
[345115393,1734028238446,-6636.26300649,0.00017298,2]
[345115394,1734028238463,-3682.091286,0.00017298,2]
[345115395,1734028238489,-9722.63316832,0.00017298,2]
[345115396,1734028238499,-790.73,0.00017299,2]
[345115397,1734028238508,-266.7,0.00017534,2]
[345115398,1734028238517,-1731.54,0.00017597,2]
[345115399,1734028238527,-200.0,0.00017667,2]
[345115400,1734028238535,-250.0,0.00017857,2]
[345115401,1734028238545,-1000.0,0.00017974,2]
[345115402,1734028238554,-266.7,0.00018183,2]
[345115403,1734028238563,-164.29120966,0.00018569,2]
[345115404,1734028238572,-426.46,0.0001869,2]
[345115405,1734028238581,-515.53,0.00018736,30]
[345115406,1734028238590,-266.7,0.00018832,2]
[345115407,1734028238600,-157.22,0.00019081,2]
[345115408,1734028238610,-150.0,0.000191,2]
[345115409,1734028238620,-200.0,0.00019168,2]
[345115410,1734028238629,-1500.0,0.00019235,2]
[345115411,1734028238643,-1229.51,0.00019421,2]
[345115412,1734028238653,-266.7,0.00019481,2]
[345115413,1734028238663,-250.0,0.00019516,2]
[345115414,1734028238672,-200.0,0.00019545,2]
[345115415,1734028238682,-790.73,0.00019563,2]
[345115416,1734028238692,-3372.0443168,0.00019749,2]
[345115417,1734028238701,-1435.83608,0.000198,2]
[345115418,1734028238711,-509624.33341819,0.0001981,3]
[345115419,1734028238723,-200769.18939614,0.0001981,2]
[345115420,1734028238733,-3168.0,0.00019849,2]
[345115421,1734028238743,-4567.5746,0.0001985,2]
[345115422,1734028238753,-57419.03396956,0.0001988,2]
[345115423,1734028238763,-3372.04431671,0.00019921,2]
[345115424,1734028238773,-13401.4949,0.0001995,2]
[345115425,1734028238783,-12439.4304,0.0001995,2]
[345115426,1734028238795,-1000.0,0.0001995,2]
[345115427,1734028238805,-5000.0,0.0001995,2]
[345115428,1734028238814,-12779.30577411,0.0002,7]
[345115429,1734028238825,-3000.0,0.0002,3]
[345115430,1734028238834,-3000.0,0.0002,5]
[345115431,1734028238844,-1913.728,0.0002,2]
[345115433,1734028238854,-24304.7884229,0.0002,2]
[345115435,1734028238865,-25248.0,0.0002,2]
[345115437,1734028238874,-86.09642306,0.0002,2]
[345115439,1734028238887,-1002.53,0.0002,2]
[345115442,1734028238897,-999.55,0.0002,2]
[345115444,1734028238906,-992.41,0.0002,2]
[345115446,1734028238916,-989.42,0.0002,2]
[345115449,1734028238925,-1010.52,0.0002,2]
[345115451,1734028238935,-999.07,0.0002,2]
[345115453,1734028238945,-991.79,0.0002,2]
[345115454,1734028238956,-173.572,0.0002,2]
[345115455,1734028238966,-352.89,0.00020027,2]
[345115456,1734028238976,-203.35,0.00020027,2]
[345115457,1734028238985,-184.49,0.0002004,2]
[345115458,1734028238995,-184.49,0.0002004,2]
[345115459,1734028239004,-184.49,0.0002004,2]
[345115460,1734028239014,-173.22292509,0.0002004,2]
[345115461,1734028239025,-496.02,0.00020047,2]
[345115462,1734028239035,-180284.90512023,0.0002005,7]
[345115468,1734028239236,-3372.04431671,0.00020094,2]
[345115469,1734028239246,-266.7,0.00020129,2]
[345115470,1734028239256,-1000.0,0.00020221,2]
[345115471,1734028239266,-975.22,0.00020247,2]
[345115472,1734028239276,-975.22,0.00020247,2]
[345115473,1734028239286,-3372.04431671,0.00020266,2]
[345115474,1734028239296,-562.0096,0.0002028,2]
[345115475,1734028239306,-184.49,0.00020287,2]
[345115476,1734028239316,-3451.73900856,0.00020297,10]
[345115477,1734028239325,-220.0,0.000203,2]
[345115478,1734028239336,-1000.0,0.000203,2]
[345115479,1734028239345,-164.29120966,0.00020303,2]
[345115480,1734028239359,-236.2582188,0.00020314,2]
[345115481,1734028239368,-184.49,0.0002037,2]
[345115482,1734028239378,-184.49,0.0002037,2]
[345115483,1734028239390,-184.49,0.0002037,2]
[345115484,1734028239400,-184.49,0.0002037,2]
[345115485,1734028239410,-184.49,0.0002037,2]
[345115486,1734028239419,-184.49,0.0002037,2]
[345115487,1734028239429,-184.49,0.0002037,2]
[345115488,1734028239439,-184.49,0.0002037,2]
[345115489,1734028239449,-184.49,0.0002037,2]
[345115490,1734028239459,-184.49,0.0002037,2]
[345115491,1734028239469,-184.49,0.0002037,2]
[345115492,1734028239479,-184.49,0.0002037,2]
[345115493,1734028239488,-184.49,0.0002037,2]
[345115494,1734028239498,-184.49,0.0002037,2]
[345115495,1734028239507,-184.49,0.0002037,2]
[345115496,1734028239517,-184.49,0.0002037,2]
[345115497,1734028239527,-184.49,0.0002037,2]
[345115498,1734028239536,-184.49,0.0002037,2]
[345115499,1734028239546,-184.49,0.0002037,2]
[345115500,1734028239557,-184.49,0.0002037,2]
[345115501,1734028239566,-184.49,0.0002037,2]
[345115502,1734028239576,-184.49,0.0002037,2]
[345115503,1734028239586,-184.49,0.0002037,2]
[345115504,1734028239595,-184.49,0.0002037,2]
[345115505,1734028239605,-184.49,0.0002037,2]
[345115506,1734028239614,-184.49,0.0002037,2]
[345115507,1734028239623,-7966.1173,0.00020373,2]
[345115508,1734028239635,-388.1967487,0.00020373,2]
[345115509,1734028239645,-500.0,0.00020373,2]
[345115510,1734028239655,-500.0,0.00020373,2]
[345115511,1734028239664,-500.0,0.00020373,2]
[345115512,1734028239674,-500.44023783,0.00020373,2]
[345115513,1734028239684,-500.0,0.00020373,2]
[345115514,1734028239694,-500.0,0.00020373,2]
[345115515,1734028239704,-159.8116731,0.00020373,2]
[345115516,1734028239714,-321.3472206,0.00020373,2]
[345115517,1734028239724,-161.12637503,0.00020373,2]
[345115518,1734028239734,-311.02613995,0.00020373,2]
[345115519,1734028239744,-203.67343187,0.00020373,2]
[345115520,1734028239754,-500.0,0.00020373,2]
[345115521,1734028239763,-202.06299485,0.00020373,2]
[345115522,1734028239773,-619.69155641,0.00020379,2]
[345115523,1734028239783,-500.0,0.00020379,2]
[345115524,1734028239793,-501.68136523,0.00020379,2]
[345115525,1734028239803,-500.0,0.00020379,2]
[345115526,1734028239813,-500.0,0.00020379,2]
[345115527,1734028239823,-537040.50833925,0.0002038,2]
[345115528,1734028239848,-12729.0659,0.0002038,2]
[345115529,1734028239860,-5769.26,0.0002038,2]
[345115530,1734028239872,-1241.83745801,0.0002038,2]
[345115531,1734028239885,-521.88471168,0.0002038,2]
[345115532,1734028239899,-7642.21174809,0.0002038,2]
[345115533,1734028239916,-1930.67743,0.0002038,2]
[345115534,1734028239928,-1665.14015305,0.0002038,2]
[345115538,1734028240510,-489.4,0.0002038,2]
[345115539,1734028240523,-102074.63966944,0.0002038,2]
[345115540,1734028240534,-925.1256535,0.0002038,2]
[345115541,1734028240609,-491.2881889,0.0002038,2]
[345115542,1734028240621,-451.5099872,0.0002038,2]
[345115543,1734028240639,-18930.32887107,0.0002038,2]
[345115544,1734028240650,-391.134259,0.0002038,2]
[345115545,1734028240661,-611.07000039,0.0002038,2]
[345115546,1734028240673,-425.39999988,0.0002038,2]
[345115547,1734028240749,-1821.48801904,0.0002038,2]
[345115550,1734028240760,-1538.12144927,0.0002038,2]
[345115563,1734028243470,-28710.0,0.0002038,2]
[345115566,1734028243560,-300.0,0.00020373,2]
[345115567,1734028243570,-4935.32925893,0.0002038,2]
[345115568,1734028243581,-282.07,0.0002038,2]
[345115569,1734028243592,-408.6,0.0002038,2]
[345115570,1734028243603,-3831.17235404,0.0002038,2]
[345115571,1734028243614,-436.00999,0.0002038,2]
[345115572,1734028243625,-59750.65666438,0.0002038,2]
[345115573,1734028243738,-364.56803301,0.0002038,2]
[345115574,1734028243751,-4936.7861344,0.0002038,2]
[345115575,1734028243762,-266.2190006,0.0002038,2]
[345115576,1734028243774,-11190.27546747,0.0002038,2]
[345115577,1734028243785,-7131.55017749,0.0002038,2]
[345115578,1734028243814,-4780.40840557,0.0002038,2]
[345115579,1734028244095,-118191.62299594,0.0002038,2]
[345115580,1734028246282,-11028.24072195,0.0002038,2]
[345115581,1734028246293,-486409.08075753,0.0002038,2]
[345115582,1734028246302,-184.49,0.0002039,2]
[345115583,1734028246312,-184.49,0.0002039,2]
[345115584,1734028246322,-184.49,0.0002039,2]
[345115585,1734028246331,-184.49,0.0002039,2]
[345115586,1734028246341,-184.49,0.0002039,2]
[345115587,1734028246352,-184.49,0.0002039,2]
[345115588,1734028246364,-184.49,0.0002039,2]
[345115589,1734028246375,-184.49,0.0002039,2]
[345115590,1734028246384,-184.49,0.0002039,2]
[345115591,1734028246398,-184.49,0.0002039,2]
[345115592,1734028246408,-184.49,0.0002039,2]
[345115593,1734028246417,-184.49,0.0002039,2]
[345115594,1734028246427,-184.49,0.0002039,2]
[345115595,1734028246438,-184.49,0.0002039,2]
[345115596,1734028246447,-184.49,0.0002039,2]
[345115597,1734028246457,-184.49,0.0002039,2]
[345115598,1734028246467,-184.49,0.0002039,2]
[345115599,1734028246477,-184.49,0.0002039,2]
[345115600,1734028246487,-2888.0,0.00020399,2]
[345115601,1734028246497,-1000000.0,0.000204,2]
[345115602,1734028246507,-3372.04431671,0.00020438,2]
[345115603,1734028246517,-3372.04431671,0.00020611,2]
[345115604,1734028246526,-236.25821876,0.00020662,2]
[345115605,1734028246536,-1016.76,0.00020675,2]
[345115606,1734028246546,-426.46,0.00020767,2]
[345115607,1734028246555,-1013.58425826,0.00020921,2]
[345115608,1734028246565,-203.70609141,0.00020921,2]
[345115609,1734028246574,-500.0,0.00020921,2]
[345115610,1734028246583,-184.49,0.0002099,2]
[345115611,1734028246593,-184.49,0.0002099,2]
[345115612,1734028246602,-150.0,0.00020999,2]
[345115613,1734028246784,-55587.34083252,0.00021,5]
[345115614,1734028246794,-650.0,0.00021,2]
[345115615,1734028246804,-61282.0283099,0.00021,10]
[345115616,1734028246814,-236.25821876,0.00021009,2]
[345115617,1734028246824,-213.0,0.00021068,2]
[345115618,1734028246833,-995.79,0.0002113,2]
[345115619,1734028246843,-150.0,0.00021136,2]
[345115620,1734028246852,-157.22,0.00021201,2]
[345115621,1734028246861,-150.0,0.00021273,2]
[345115622,1734028246870,-478.88615513,0.000213,2]
[345115623,1734028246880,-165.59749044,0.000213,2]
[345115624,1734028246894,-487.07414785,0.000213,2]
[345115626,1734028246903,-515.53,0.0002132,30]
[345115627,1734028246912,-236.25821876,0.00021357,2]
[345115630,1734028246922,-500.0,0.00021373,2]
[345115631,1734028246931,-500.0,0.00021373,2]
[345115632,1734028246940,-500.0,0.00021373,2]
[345115633,1734028246951,-314.3367718,0.00021373,2]
[345115634,1734028246960,-300.19144755,0.00021373,2]
[345115635,1734028246969,-500.0,0.00021373,2]
[345115636,1734028246978,-184.49,0.00021384,2]
[345115637,1734028246987,-184.49,0.00021384,2]
[345115638,1734028246996,-184.49,0.00021384,2]
[345115639,1734028247005,-184.49,0.00021384,2]
[345115640,1734028247014,-184.49,0.00021384,2]
[345115641,1734028247022,-184.49,0.00021384,2]
[345115642,1734028247031,-184.49,0.00021384,2]
[345115643,1734028247040,-184.49,0.00021384,2]
[345115644,1734028247049,-184.49,0.00021384,2]
[345115645,1734028247058,-184.49,0.00021384,2]
[345115646,1734028247067,-184.49,0.00021384,2]
[345115647,1734028247076,-184.49,0.00021384,2]
[345115648,1734028247085,-184.49,0.00021384,2]
[345115649,1734028247095,-184.49,0.00021384,2]
[345115650,1734028247105,-184.49,0.00021384,2]
[345115651,1734028247114,-184.49,0.00021384,2]
[345115652,1734028247123,-184.49,0.00021384,2]
[345115653,1734028247133,-184.49,0.00021384,2]
[345115654,1734028247148,-184.49,0.00021384,2]
[345115655,1734028247157,-184.49,0.00021384,2]
[345115656,1734028247168,-184.49,0.00021384,2]
[345115657,1734028247178,-184.49,0.00021384,2]
[345115658,1734028247188,-184.49,0.00021384,2]
[345115659,1734028247198,-184.49,0.00021384,2]
[345115660,1734028247207,-184.49,0.00021384,2]
[345115661,1734028247217,-184.49,0.00021384,2]
[345115662,1734028247227,-184.49,0.00021384,2]
[345115663,1734028247237,-184.49,0.00021384,2]
[345115664,1734028247246,-184.49,0.00021384,2]
[345115665,1734028247256,-184.49,0.00021384,2]
[345115666,1734028247266,-184.49,0.00021384,2]
[345115667,1734028247276,-184.49,0.00021384,2]
[345115668,1734028247286,-184.49,0.00021384,2]
[345115669,1734028247295,-184.49,0.00021384,2]
[345115670,1734028247305,-184.49,0.00021384,2]
[345115671,1734028247315,-184.49,0.00021384,2]
[345115672,1734028247325,-184.49,0.00021384,2]
[345115673,1734028247334,-184.49,0.00021384,2]
[345115674,1734028247344,-184.49,0.00021384,2]
[345115675,1734028247353,-184.49,0.00021384,2]
[345115676,1734028247368,-184.49,0.0002139,2]
[345115677,1734028247377,-184.49,0.0002139,2]
[345115678,1734028247390,-184.49,0.0002139,2]
[345115679,1734028247400,-184.49,0.0002139,2]
[345115680,1734028247410,-184.49,0.0002139,2]
[345115681,1734028247420,-184.49,0.0002139,2]
[345115682,1734028247431,-184.49,0.0002139,2]
[345115683,1734028247440,-184.49,0.0002139,2]
[345115684,1734028247450,-184.49,0.0002139,2]
[345115685,1734028247460,-500.0,0.00021393,2]
[345115686,1734028247469,-1015976.96873913,0.00021394,2]
[345115687,1734028247482,-365.3141092,0.00021394,2]
[345115688,1734028247501,-40976.45815483,0.00021394,2]
[345115689,1734028247511,-142134.93109563,0.00021394,2]
[345115690,1734028247523,-1922.0,0.00021394,2]
[345115691,1734028247534,-184223.00634708,0.00021394,2]
[345115692,1734028247546,-4848.3864252,0.00021394,2]
[345115693,1734028247655,-6749.082116,0.00021394,2]